fUST/lending_fUST_20250930
["ID","MTS","AMOUNT","RATE_DAILY","PERIOD"]
[388429423,1759166778323,809.35,0.00023424,10]
[388429424,1759166779213,594.43,0.00023433,2]
[388429425,1759166783002,544.89,0.00023433,2]
[388429426,1759166788521,224.17328258,0.00023431,2]
[388429427,1759166795889,480.0,0.00023431,2]
[388429428,1759166822848,300.0,0.00023432,2]
[388429431,1759166832341,221.40258293,0.00023431,2]
[388429432,1759166832363,258.59741707,0.00023431,2]
[388429433,1759166840754,1200.0,0.00023432,2]
[388429434,1759166850087,480.0,0.00023433,2]
[388429435,1759166852142,-173.57830241,0.00023433,2]
[388429436,1759166852172,-315.58224346,0.00023433,2]
[388429437,1759166852201,-500.0,0.00023433,2]
[388429438,1759166852229,-266.91219524,0.00023433,2]
[388429439,1759166852256,-294.8176408,0.00023433,2]
[388429440,1759166852284,-500.0,0.00023433,2]
[388429441,1759166852312,-500.0,0.00023433,2]
[388429442,1759166852340,-500.0,0.00023433,2]
[388429443,1759166852368,-500.0,0.00023433,2]
[388429444,1759166852396,-500.0,0.00023433,2]
[388429445,1759166852426,-500.0,0.00023433,2]
[388429446,1759166852454,-398.22923618,0.00023433,2]
[388429447,1759166852787,-101.77076382,0.00023433,2]
[388429448,1759166852816,-450.0,0.00023433,2]
[388429449,1759166852842,-160.0,0.00023434,2]
[388429450,1759166852869,-500.0,0.00023434,2]
[388429451,1759166852897,-160.0,0.00023434,2]
[388429452,1759166852925,-480.0,0.00023434,2]
[388429453,1759166852953,-1078.46,0.00023434,2]
[388429454,1759166852980,-573.05,0.00023434,2]
[388429455,1759166853008,-480.0,0.00023434,2]
[388429456,1759166853036,-480.0,0.00023434,2]
[388429457,1759166853069,-476.72847236,0.00023434,2]
[388429458,1759166853212,-119.99152764,0.00023434,2]
[388429459,1759166853243,-659.07,0.00023434,2]
[388429460,1759166853275,-788.76,0.00023434,2]
[388429461,1759166853307,-487.04,0.00023434,2]
[388429462,1759166853339,-480.0,0.00023434,2]
[388429463,1759166853371,-480.0,0.00023434,2]
[388429464,1759166853402,-754.6,0.00023434,2]
[388429465,1759166853434,-480.0,0.00023434,2]
[388429466,1759166853467,-306.35694472,0.00023434,2]
[388429467,1759166854316,-888.37305528,0.00023434,2]
[388429468,1759166854346,-807.24,0.00023434,2]
[388429469,1759166854374,-500.0,0.00023434,2]
[388429470,1759166854402,-918.29,0.00023434,2]
[388429471,1759166854430,-480.0,0.00023434,2]
[388429472,1759166854458,-480.0,0.00023434,2]
[388429473,1759166854488,-480.0,0.00023434,2]
[388429474,1759166854516,-289.58388944,0.00023434,2]
[388429475,1759166854696,-313.03611056,0.00023434,2]
[388429476,1759166854727,-480.0,0.00023434,2]
[388429477,1759166854756,-910.45,0.00023434,2]
[388429478,1759166854785,-901.07,0.00023434,2]
[388429479,1759166854813,-480.0,0.00023434,2]
[388429480,1759166854842,-480.0,0.00023434,2]
[388429481,1759166854871,-725.29,0.00023434,2]
[388429482,1759166854899,-509.35777888,0.00023434,2]
[388429483,1759166854938,-401.60222112,0.00023434,2]
[388429484,1759166854967,-480.0,0.00023434,2]
[388429485,1759166854995,-480.0,0.00023434,2]
[388429486,1759166855024,-935.18,0.00023434,2]
[388429487,1759166855055,-1586.08,0.00023434,2]
[388429488,1759166855086,-994.33555776,0.00023434,2]
[388429489,1759166855137,480.0,0.00023433,2]
[388429490,1759166855183,-245.61444224,0.00023434,2]
[388429491,1759166855213,-767.48,0.00023434,2]
[388429492,1759166855242,-480.0,0.00023434,2]
[388429493,1759166855271,-987.53,0.00023434,2]
[388429494,1759166855302,-964.69,0.00023434,2]
[388429495,1759166855332,-480.0,0.00023434,2]
[388429496,1759166855361,-480.0,0.00023434,2]
[388429497,1759166855392,-139.49111552,0.00023434,2]
[388429498,1759166855440,-910.39888448,0.00023434,2]
[388429499,1759166855469,-480.0,0.00023434,2]
[388429500,1759166855499,-480.0,0.00023434,2]
[388429501,1759166855527,-577.1,0.00023434,2]
[388429502,1759166855557,-480.0,0.00023434,2]
[388429503,1759166855586,-1603.73,0.00023434,2]
[388429504,1759166855616,-457.55223104,0.00023434,2]
[388429505,1759166855666,-22.44776896,0.00023434,2]
[388429506,1759166855696,-480.0,0.00023434,2]
[388429507,1759166855724,-1260.15,0.00023434,2]
[388429508,1759166855757,-480.0,0.00023434,2]
[388429509,1759166855788,-1997.24,0.00023434,2]
[388429510,1759166855836,-1868.21,0.00023434,2]
[388429511,1759166855865,-575.37,0.00023434,2]
[388429512,1759166855895,-1075.31,0.00023434,2]
[388429513,1759166855924,-571.91,0.00023434,2]
[388429514,1759166855953,-480.0,0.00023434,2]
[388429515,1759166855981,-378.41,0.00023434,2]
[388429516,1759166862034,-101.59,0.00023434,2]
[388429517,1759166862066,-481.29,0.00023434,2]
[388429518,1759166862096,-520.83,0.00023434,2]
[388429519,1759166862124,-623.3,0.00023434,2]
[388429520,1759166862151,-480.0,0.00023434,2]
[388429521,1759166862178,-521.85954466,0.00023434,2]
[388429522,1759166862473,-480.0,0.00023433,2]
[388429523,1759166862501,-4314.54,0.00023434,2]
[388429524,1759166862667,-410.93,0.00023434,2]
[388429525,1759166862695,-480.0,0.00023434,2]
[388429526,1759166862722,-765.37,0.00023434,2]
[388429527,1759166862750,-480.0,0.00023434,2]
[388429528,1759166862778,-531.38,0.00023434,2]
[388429529,1759166862807,-963.0,0.00023434,2]
[388429530,1759166862835,-480.0,0.00023434,2]
[388429531,1759166862886,-2181.33,0.00023434,2]
[388429532,1759166862913,-2243.38,0.00023434,2]
[388429533,1759166862934,-480.0,0.00023434,2]
[388429534,1759166863142,-480.0,0.00023434,2]
[388429535,1759166863171,-202.80129245,0.00023434,2]
[388429536,1759166863201,-519.15,0.00023434,2]
[388429537,1759166863228,-480.0,0.00023434,2]
[388429538,1759166863257,-480.0,0.00023434,2]
[388429539,1759166863285,-480.0,0.00023434,2]
[388429540,1759166863312,-480.0,0.00023434,2]
[388429541,1759166863340,-480.0,0.00023434,2]
[388429542,1759166863368,-480.0,0.00023434,2]
[388429543,1759166863397,-558.08,0.00023434,2]
[388429544,1759166863426,-167.3274151,0.00023434,2]
[388429545,1759166864581,814.0,0.00023372,2]
[388429546,1759166865940,-160.0,0.00023433,2]
[388429547,1759166872062,-516.51,0.00023433,2]
[388429548,1759166872091,-385.2925849,0.00023434,2]
[388429549,1759166872120,-608.05,0.00023434,2]
[388429550,1759166872149,-480.0,0.00023434,2]
[388429551,1759166872177,-539.43,0.00023434,2]
[388429552,1759166872206,-717.33,0.00023434,2]
[388429553,1759166872234,-480.0,0.00023434,2]
[388429554,1759166872261,-480.0,0.00023434,2]
[388429555,1759166872289,-650.9,0.00023434,2]
[388429556,1759166872491,-1224.29,0.00023434,2]
[388429557,1759166872521,-1339.23,0.00023434,2]
[388429558,1759166872550,-480.0,0.00023434,2]
[388429559,1759166872578,-480.0,0.00023434,2]
[388429560,1759166872606,-478.44772689,0.00023434,2]
[388429561,1759166872634,-810.33,0.00023434,2]
[388429562,1759166872831,-942.08,0.00023434,2]
[388429563,1759166872862,-497.7,0.00023434,2]
[388429564,1759166872894,-537.52,0.00023434,2]
[388429565,1759166872915,-1139.02,0.00023434,2]
[388429566,1759166872968,-4979.92,0.00023434,2]
[388429567,1759166873337,-40.17,0.00023434,2]
[388429568,1759166873366,-876.62,0.00023434,2]
[388429569,1759166873395,-480.0,0.00023434,2]
[388429570,1759166873424,-418.58611225,0.00023434,2]
[388429571,1759166873454,-678.57,0.00023434,2]
[388429572,1759166873484,-1277.27,0.00023434,2]
[388429573,1759166873514,-480.0,0.00023434,2]
[388429574,1759166873542,-494.27,0.00023434,2]
[388429575,1759166873671,-1886.04,0.00023434,2]
[388429576,1759166873702,-1008.18,0.00023434,2]
[388429577,1759166873731,-480.0,0.00023434,2]
[388429578,1759166873759,-480.0,0.00023434,2]
[388429579,1759166873787,-623.44133263,0.00023434,2]
[388429580,1759166874107,-963.46,0.00023434,2]
[388429582,1759166879045,632.70404592,0.000234,2]
[388429583,1759166882142,-1926.92,0.00023434,2]
[388429584,1759166882673,-300.0,0.00023433,2]
[388429585,1759166882706,-3253.84,0.00023434,2]
[388429586,1759166883223,-2892.33,0.00023434,2]
[388429587,1759166883253,-480.0,0.00023434,2]
[388429588,1759166883284,-499.21,0.00023434,2]
[388429589,1759166883315,-480.0,0.00023434,2]
[388429590,1759166883345,-573.69,0.00023434,2]
[388429591,1759166883395,-2666.91,0.00023434,2]
[388429592,1759166883423,-480.0,0.00023434,2]
[388429593,1759166883453,-480.0,0.00023434,2]
[388429594,1759166883483,-437.98,0.00023434,2]
[388429595,1759166883537,-1870.23,0.00023434,2]
[388429596,1759166883569,-480.0,0.00023434,2]
[388429597,1759166883599,-480.0,0.00023434,2]
[388429598,1759166883630,-688.19,0.00023434,2]
[388429599,1759166883660,-480.0,0.00023434,2]
[388429600,1759166883689,-506.11,0.00023434,2]
[388429601,1759166883720,-480.0,0.00023434,2]
[388429602,1759166883896,-480.0,0.00023434,2]
[388429603,1759166883925,-511.53,0.00023434,2]
[388429604,1759166883954,-597.98,0.00023434,2]
[388429605,1759166883983,-480.0,0.00023434,2]
[388429606,1759166884013,-480.0,0.00023434,2]
[388429607,1759166884043,-2162.86,0.00023434,2]
[388429608,1759166884273,-575.27,0.00023434,2]
[388429609,1759166884303,-513.74,0.00023434,2]
[388429610,1759166884333,-480.0,0.00023434,2]
[388429611,1759166884362,-1298.63,0.00023434,2]
[388429613,1759166899443,5000.0,0.000234,2]
[388429614,1759166902078,-480.0,0.00023433,2]
[388429615,1759166902105,-500.0,0.00023434,2]
[388429616,1759166902134,-3775.28,0.00023434,2]
[388429617,1759166902233,-489.45,0.00023434,2]
[388429618,1759166902262,-517.06,0.00023434,2]
[388429619,1759166902290,-494.51857176,0.00023434,2]
[388429620,1759166902317,-617.63068873,0.00023434,2]
[388429621,1759166902344,-480.0,0.00023434,2]
[388429622,1759166902370,-808.54,0.00023434,2]
[388429623,1759166902396,-522.16,0.00023434,2]
[388429624,1759166902422,-859.5,0.00023434,2]
[388429625,1759166905309,-1331.05,0.00023434,2]
[388429626,1759166905338,-215.55251,0.00023434,2]
[388429627,1759166905367,-480.0,0.00023434,2]
[388429628,1759166905395,-2031.57,0.00023434,2]
[388429629,1759166905423,-530.58,0.00023434,2]
[388429630,1759166905452,-342.50498,0.00023434,2]
[388429631,1759166907758,5000.0,0.000234,2]
[388429634,1759166915371,1000.0,0.00022562,2]
[388429635,1759166916143,5000.0,0.000234,2]
[388429636,1759166917126,-575.73,0.00023433,2]
[388429637,1759166917395,-480.0,0.00023433,2]
[388429638,1759166917424,-137.49502,0.00023434,2]
[388429639,1759166917452,-480.0,0.00023434,2]
[388429640,1759166917480,-480.0,0.00023434,2]
[388429641,1759166917508,-480.0,0.00023434,2]
[388429642,1759166917537,-480.0,0.00023434,2]
[388429643,1759166917566,-480.0,0.00023434,2]
[388429644,1759166917595,-504.08,0.00023434,2]
[388429645,1759166917627,-630.18,0.00023434,2]
[388429646,1759166917657,-65.03996,0.00023434,2]
[388429647,1759166917737,150.999999,0.0002,120]
[388429648,1759166917787,-414.96004,0.00023434,2]
[388429649,1759166917816,-500.0,0.00023434,2]
[388429650,1759166917843,-480.0,0.00023434,2]
[388429651,1759166917871,-480.0,0.00023434,2]
[388429652,1759166917899,-1207.64,0.00023434,2]
[388429653,1759166917927,-480.0,0.00023434,2]
[388429654,1759166917955,-1030.5,0.00023434,2]
[388429655,1759166917983,-222.94992,0.00023434,2]
[388429656,1759166924220,5000.0,0.000234,2]
[388429657,1759166927173,-851.58,0.00023433,2]
[388429658,1759166927204,-367.91008,0.00023434,2]
[388429659,1759166927232,-624.38,0.00023434,2]
[388429660,1759166927260,-1332.9,0.00023434,2]
[388429661,1759166927289,-1496.56984,0.00023434,2]
[388429662,1759166932610,5000.0,0.000234,2]
[388429663,1759166937264,-1796.71,0.00023433,2]
[388429664,1759166937292,-480.0,0.00023433,2]
[388429665,1759166937322,-2015.21,0.00023433,2]
[388429666,1759166937481,-1416.17,0.00023433,2]
[388429667,1759166937512,-653.33016,0.00023434,2]
[388429668,1759166937540,-1332.43968,0.00023434,2]
[388429669,1759166937715,-3196.13032,0.00023434,2]
[388429670,1759166937744,-480.0,0.00023434,2]
[388429671,1759166937772,-480.0,0.00023434,2]
[388429672,1759166937800,-504.91,0.00023434,2]
[388429673,1759166947271,-480.0,0.00023433,2]
[388429674,1759166947302,-300.0,0.00023433,2]
[388429675,1759166947332,-480.0,0.00023433,2]
[388429676,1759166947361,-2090.44,0.00023434,2]
[388429677,1759166947389,-612.59,0.00023434,2]
[388429678,1759166947417,-534.82,0.00023434,2]
[388429679,1759166947445,-480.0,0.00023434,2]
[388429680,1759166947619,-480.0,0.00023434,2]
[388429681,1759166947647,-480.0,0.00023434,2]
[388429682,1759166947680,-480.0,0.00023434,2]
[388429683,1759166947709,-480.0,0.00023434,2]
[388429684,1759166947738,-219.5273721,0.00023434,2]
[388429685,1759166947768,-480.0,0.00023434,2]
[388429686,1759166947798,-480.0,0.00023434,2]
[388429687,1759166947827,-729.34,0.00023434,2]
[388429688,1759166947856,-480.0,0.00023434,2]
[388429689,1759166947885,-208.9952558,0.00023434,2]
[388429690,1759166949033,5000.0,0.000234,2]
[388429691,1759166957165,-480.0,0.00023433,2]
[388429692,1759166957196,-480.0,0.00023433,2]
[388429693,1759166957224,-964.2847442,0.00023434,2]
[388429694,1759166957252,-480.0,0.00023434,2]
[388429695,1759166957281,-480.0,0.00023434,2]
[388429696,1759166957308,-480.0,0.00023434,2]
[388429697,1759166957335,-812.04,0.00023434,2]
[388429698,1759166957361,-480.0,0.00023434,2]
[388429699,1759166957392,-66.4505116,0.00023434,2]
[388429700,1759166957493,-554.4594884,0.00023434,2]
[388429701,1759166957521,-573.36,0.00023434,2]
[388429702,1759166957548,-480.0,0.00023434,2]
[388429703,1759166957576,-598.2,0.00023434,2]
[388429704,1759166957603,-480.0,0.00023434,2]
[388429705,1759166957631,-480.0,0.00023434,2]
[388429706,1759166957658,-567.12,0.00023434,2]
[388429707,1759166957811,4543.38241417,0.000234,2]
[388429708,1759166967195,-480.0,0.00023433,2]
[388429709,1759166967227,-480.0,0.00023433,2]
[388429710,1759166967255,-528.69,0.00023433,2]
[388429711,1759166967284,-2211.71,0.00023434,2]
[388429712,1759166967417,-2599.21,0.00023434,2]
[388429713,1759166967448,-755.45,0.00023434,2]
[388429714,1759166967478,-480.0,0.00023434,2]
[388429715,1759166967506,-480.0,0.00023434,2]
[388429716,1759166967535,-226.36,0.00023434,2]
[388429717,1759166972438,5000.0,0.000234,2]
[388429719,1759166977353,-1348.66,0.00023433,2]
[388429720,1759166977384,-917.97,0.00023434,2]
[388429721,1759166977412,-968.18,0.00023434,2]
[388429722,1759166977440,-480.0,0.00023434,2]
[388429723,1759166977467,-480.0,0.00023434,2]
[388429724,1759166977494,-480.0,0.00023434,2]
[388429725,1759166977521,-170.39,0.00023434,2]
[388429726,1759166987220,-480.0,0.00023433,2]
[388429727,1759166987248,-480.0,0.00023433,2]
[388429728,1759166987276,-480.0,0.00023433,2]
[388429729,1759166987303,-309.61,0.00023434,2]
[388429730,1759166987331,-1871.07,0.00023434,2]
[388429731,1759166987358,-873.01,0.00023434,2]
[388429732,1759166987385,-160.0,0.00023434,2]
[388429733,1759166987412,-212.63,0.00023434,2]
[388429734,1759166987516,-3746.41,0.00023433,2]
[388429735,1759166987544,-267.37,0.00023434,2]
[388429736,1759166987572,-480.0,0.00023434,2]
[388429737,1759166987600,-480.0,0.00023434,2]
[388429738,1759166994497,5000.0,0.000234,2]
[388429739,1759166997299,-480.0,0.00023433,2]
[388429740,1759166997327,-938.51,0.00023433,2]
[388429741,1759166997356,-481.46797865,0.00023434,2]
[388429742,1759166997383,-480.0,0.00023434,2]
[388429743,1759166997411,-480.0,0.00023434,2]
[388429744,1759166997439,-1311.89,0.00023434,2]
[388429745,1759166997465,-480.0,0.00023434,2]
[388429746,1759166997491,-222.12627264,0.00023434,2]
[388429748,1759167004142,181.224444,0.00022469,2]
[388429749,1759167007245,-470.18901846,0.00023433,2]
[388429750,1759167007272,-480.0,0.00023433,2]
[388429751,1759167007300,-300.0,0.00023433,2]
[388429752,1759167007335,-480.0,0.00023433,2]
[388429753,1759167007366,-1200.0,0.00023433,2]
[388429754,1759167007395,-252.02149742,0.00023434,2]
[388429755,1759167007425,-480.0,0.00023434,2]
[388429756,1759167007456,-480.0,0.00023434,2]
[388429757,1759167007484,-480.0,0.00023434,2]
[388429758,1759167007513,-275.58896824,0.00023434,2]
[388429759,1759167007702,-204.41103176,0.00023434,2]
[388429760,1759167007730,-480.0,0.00023434,2]
[388429761,1759167007759,-480.0,0.00023434,2]
[388429762,1759167007787,-2555.79,0.00023434,2]
[388429763,1759167007816,-480.0,0.00023435,2]
[388429764,1759167007846,-526.62205534,0.00023436,2]
[388429765,1759167008062,-412.54635498,0.00023436,2]
[388429766,1759167016687,5000.0,0.000234,2]
[388429767,1759167027448,-480.0,0.00023433,2]
[388429768,1759167027474,-871.73,0.00023433,2]
[388429769,1759167027502,-480.0,0.00023433,2]
[388429770,1759167027531,-480.0,0.00023433,2]
[388429771,1759167027558,-480.0,0.00023433,2]
[388429772,1759167027586,-480.0,0.00023433,2]
[388429773,1759167027615,-508.64960983,0.00023433,2]
[388429774,1759167027641,-480.0,0.00023433,2]
[388429775,1759167027669,-500.0,0.00023434,2]
[388429776,1759167027854,-479.25078034,0.00023434,2]
[388429777,1759167027942,-0.74921966,0.00023434,2]
[388429778,1759167027969,-480.0,0.00023434,2]
[388429779,1759167027996,-387.84086418,0.00023434,2]
[388429780,1759167028023,-480.0,0.00023434,2]
[388429781,1759167028252,-535.77,0.00023434,2]
[388429782,1759167028281,-480.0,0.00023434,2]
[388429783,1759167028308,-480.0,0.00023434,2]
[388429784,1759167028336,-480.0,0.00023434,2]
[388429785,1759167028363,-480.0,0.00023434,2]
[388429786,1759167028393,-133.81747082,0.00023436,2]
[388429787,1759167028421,-160.0,0.00023437,3]
[388429788,1759167028449,-405.179,0.00023437,3]
[388429789,1759167028476,-300.0,0.00023437,2]
[388429790,1759167028529,-501.8557011,0.00023438,2]
[388429791,1759167028558,-543.26504336,0.00023438,2]
[388429792,1759167028586,-500.0,0.00023438,2]
[388429793,1759167028616,-500.0,0.00023438,2]
[388429794,1759167028644,-500.0,0.00023438,2]
[388429795,1759167028673,-500.0,0.00023438,2]
[388429796,1759167028702,-500.0,0.00023438,2]
[388429797,1759167028731,-500.0,0.00023438,2]
[388429798,1759167028759,-597.30794849,0.00023438,2]
[388429799,1759167028786,-215.1526141,0.00023438,2]
[388429800,1759167028897,-284.8473859,0.00023438,2]
[388429801,1759167028926,-500.0,0.00023438,2]
[388429802,1759167028953,-500.0,0.00023438,2]
[388429803,1759167028981,-500.0,0.00023438,2]
[388429804,1759167029009,-500.0,0.00023438,2]
[388429805,1759167029039,-500.0,0.00023438,2]
[388429806,1759167029065,-194.98272228,0.00023438,2]
[388429807,1759167029094,-500.0,0.00023438,2]
[388429808,1759167029123,-631.27759261,0.00023438,2]
[388429809,1759167029154,-481.91590417,0.00023438,2]
[388429810,1759167029183,-313.96279008,0.00023438,2]
[388429811,1759167029978,-481.91590417,0.00023433,2]
[388429812,1759167030032,-500.0,0.00023433,2]
[388429846,1759167031706,-905.79409583,0.00023433,2]
[388429848,1759167031716,-480.0,0.00023433,2]
[388429850,1759167031725,-480.0,0.00023433,2]
[388429852,1759167031734,-480.0,0.00023433,2]
[388429854,1759167031743,-262.62942951,0.00023434,2]
[388429856,1759167031753,-217.37057049,0.00023434,2]
[388429858,1759167031762,-186.03720992,0.00023438,2]
[388429860,1759167031771,-500.0,0.00023438,2]
[388429861,1759167031780,-651.64619369,0.00023438,2]
[388429863,1759167031789,-500.0,0.00023438,2]
[388429865,1759167031797,-500.0,0.00023438,2]
[388429867,1759167031806,-300.0,0.00023438,2]
[388429868,1759167031814,-500.0,0.00023438,2]
[388429870,1759167031823,-500.0,0.00023438,2]
[388429872,1759167031832,-500.0,0.00023438,2]
[388429874,1759167031845,-351.01519068,0.00023438,2]
[388429875,1759167031854,-323.87270528,0.00023438,2]
[388429876,1759167031862,-500.0,0.00023438,2]
[388429892,1759167031871,-500.0,0.00023438,2]
[388429893,1759167032054,-500.0,0.00023438,2]
[388429894,1759167032063,-500.0,0.00023438,2]
[388429895,1759167032073,-500.0,0.00023438,2]
[388429896,1759167032083,-500.0,0.00023438,2]
[388429897,1759167032095,-500.0,0.00023438,2]
[388429899,1759167032104,-322.8055572,0.00023438,2]
[388429900,1759167032114,-249.31976984,0.00023438,2]
[388429901,1759167032123,-500.0,0.00023438,2]
[388429902,1759167032133,-500.0,0.00023438,2]
[388429903,1759167032144,-500.0,0.00023438,2]
[388429904,1759167032158,-500.0,0.00023438,2]
[388429905,1759167032167,-500.0,0.00023438,2]
[388429906,1759167032177,-500.0,0.00023438,2]
[388429907,1759167032186,-500.0,0.00023438,2]
[388429908,1759167032197,-500.0,0.00023438,2]
[388429909,1759167032208,-500.0,0.00023438,2]
[388429910,1759167032221,-500.0,0.00023438,2]
[388429911,1759167032231,-500.0,0.00023438,2]
[388429912,1759167032241,-500.0,0.00023438,2]
[388429913,1759167032250,-500.0,0.00023438,2]
[388429914,1759167032259,-500.0,0.00023438,2]
[388429915,1759167032269,-480.0,0.00023439,2]
[388429916,1759167032278,-480.0,0.00023439,2]
[388429917,1759167032287,-480.0,0.00023439,2]
[388429918,1759167032297,-387.58425131,0.00023439,2]
[388429919,1759167032307,-214.15505099,0.00023439,2]
[388429920,1759167032316,-480.0,0.00023439,2]
[388429921,1759167032325,-480.0,0.00023439,2]
[388429922,1759167032337,-480.0,0.00023439,2]
[388429923,1759167032346,-480.0,0.00023439,2]
[388429924,1759167032355,-480.0,0.00023439,2]
[388429925,1759167032365,-480.0,0.00023439,2]
[388429926,1759167032375,-480.0,0.00023439,2]
[388429927,1759167032384,-295.49799564,0.00023439,2]
[388429928,1759167032393,-480.0,0.00023439,2]
[388429929,1759167032402,-480.0,0.00023439,2]
[388429930,1759167032411,-5000.0,0.00023473,2]
[388429931,1759167032420,-3120.0,0.00023473,2]
[388429932,1759167032429,-253.0,0.00023499,2]
[388429933,1759167032439,-500.0,0.000235,2]
[388429934,1759167032448,-1000.0,0.000235,2]
[388429935,1759167032457,-32.74076936,0.00023555,2]
[388429936,1759167032469,-323.04963564,0.00023555,2]
[388429937,1759167032479,-503.44917089,0.00023555,2]
[388429938,1759167032488,-82.45576164,0.00023555,2]
[388429939,1759167032499,-286.81356417,0.00023555,2]
[388429949,1759167037305,-480.0,0.00023434,2]
[388429950,1759167037336,-285.59237658,0.00023438,2]
[388429951,1759167037367,-500.0,0.00023438,2]
[388429955,1759167037397,-500.0,0.00023438,2]
[388429959,1759167037427,-500.0,0.00023438,2]
[388429964,1759167037463,-500.0,0.00023438,2]
[388429968,1759167037493,-500.0,0.00023438,2]
[388429972,1759167037522,-615.57319422,0.00023438,2]
[388429976,1759167037550,-480.0,0.00023439,2]
[388430002,1759167037805,-878.73,0.00023555,2]
[388430004,1759167037817,-173.73913256,0.00023555,2]
[388430006,1759167037827,-230.96794405,0.00023555,2]
[388430007,1759167037836,-2011.78288687,0.00023555,2]
[388430009,1759167037846,-389.39932709,0.00023555,2]
[388430011,1759167037856,-500.0,0.00023555,2]
[388430013,1759167037865,-577.58,0.00023598,3]
[388430015,1759167037874,-192.51,0.00023599,3]
[388430017,1759167037884,-500.0,0.00023607,2]
[388430019,1759167037893,-220.90757042,0.00023607,2]
[388430022,1759167037906,-206.37234856,0.00023607,2]
[388430024,1759167037916,-500.0,0.00023607,2]
[388430027,1759167037933,-500.0,0.00023607,2]
[388430029,1759167037949,-500.0,0.00023607,2]
[388430032,1759167037963,-500.0,0.00023607,2]
[388430034,1759167037976,-2076.940496,0.00023608,2]
[388430037,1759167037991,-22432.07120371,0.00023608,2]
[388430039,1759167038003,-2076.94049599,0.00023677,2]
[388430041,1759167038014,-407.32844682,0.00023678,2]
[388430043,1759167038028,-500.0,0.00023679,2]
[388430046,1759167038040,-866.34,0.00023685,3]
[388430048,1759167038052,-673.8,0.00023685,3]
[388430050,1759167038065,-500.0,0.00023694,2]
[388430053,1759167038080,-500.0,0.00023694,2]
[388430055,1759167038094,-500.0,0.00023694,2]
[388430057,1759167038107,-500.0,0.00023694,2]
[388430059,1759167038120,-500.0,0.00023694,2]
[388430062,1759167038134,-500.0,0.00023694,2]
[388430064,1759167038150,-500.0,0.00023694,2]
[388430066,1759167038161,-500.0,0.00023694,2]
[388430068,1759167038174,-500.0,0.00023694,2]
[388430071,1759167038191,-500.0,0.00023694,2]
[388430073,1759167038205,-500.0,0.00023694,2]
[388430074,1759167038217,-500.0,0.00023694,2]
[388430075,1759167038232,-500.0,0.00023694,2]
[388430076,1759167038245,-151.0,0.00023694,2]
[388430077,1759167038258,-858.25,0.00023694,3]
[388430078,1759167038272,-4577.12,0.00023695,3]
[388430079,1759167038283,-2288.56,0.00023695,3]
[388430080,1759167038293,-1144.28,0.00023695,3]
[388430081,1759167038305,-572.14,0.00023695,3]
[388430082,1759167038317,-286.07,0.00023695,3]
[388430083,1759167038332,-334.47,0.00023697,3]
[388430084,1759167038346,-520.81445983,0.000237,14]